[Event "Late-Titled-Tuesday-Blitz-October-24-2023"]
[Site "Chess.com"]
[Date "2023.10.24"]
[Round "1"]
[White "sofaceindisguise"]
[Black "arenal72"]
[Result "0-1"]
[WhiteElo "2742"]
[BlackElo "2445"]
[TimeControl "180+1"]
[EndTime "14:07:42 PDT"]
[Termination "arenal72 won by resignation"]

1. e4 {[%clk 0:02:19.3]} 1... Nc6 {[%clk 0:02:59]} 2. d4 {[%clk 0:02:18.2]} 2...
d5 {[%clk 0:02:58.6]} 3. e5 {[%clk 0:02:16.5]} 3... Bf5 {[%clk 0:02:56.8]} 4. c3
{[%clk 0:02:15.6]} 4... Qd7 {[%clk 0:02:56.1]} 5. Bb5 {[%clk 0:02:12.4]} 5... a6
{[%clk 0:02:51.5]} 6. Ba4 {[%clk 0:02:10.8]} 6... f6 {[%clk 0:02:49.5]} 7. Nf3
{[%clk 0:02:07.5]} 7... O-O-O {[%clk 0:02:46.9]} 8. O-O {[%clk 0:02:05.3]} 8...
g5 {[%clk 0:02:46.4]} 9. Re1 {[%clk 0:02:02.4]} 9... h5 {[%clk 0:02:44.4]} 10.
b4 {[%clk 0:02:00.4]} 10... b5 {[%clk 0:02:28.3]} 11. Bc2 {[%clk 0:01:57.4]}
11... h4 {[%clk 0:02:25.4]} 12. a4 {[%clk 0:01:53.1]} 12... Kb7 {[%clk
0:02:14.3]} 13. axb5 {[%clk 0:01:53]} 13... axb5 {[%clk 0:02:14.1]} 14. Bxf5
{[%clk 0:01:48.5]} 14... Qxf5 {[%clk 0:02:14.2]} 15. Qe2 {[%clk 0:01:48.2]}
15... Na7 {[%clk 0:01:52.9]} 16. Be3 {[%clk 0:01:38.3]} 16... c6 {[%clk
0:01:36.3]} 17. Qa2 {[%clk 0:01:29.7]} 17... Nc8 {[%clk 0:01:34.8]} 18. Qa8+
{[%clk 0:01:27.1]} 18... Kc7 {[%clk 0:01:34.9]} 19. Nbd2 {[%clk 0:01:20]} 19...
g4 {[%clk 0:01:30]} 20. Nb3 {[%clk 0:01:04.1]} 20... Kd7 {[%clk 0:01:12.1]} 21.
Nc5+ {[%clk 0:00:52]} 21... Ke8 {[%clk 0:01:11.9]} 22. Qxc6+ {[%clk 0:00:50.2]}
22... Kf7 {[%clk 0:01:11.9]} 23. exf6 {[%clk 0:00:45.4]} 23... gxf3 {[%clk
0:01:08.8]} 24. fxe7 {[%clk 0:00:32.6]} 24... Ngxe7 {[%clk 0:01:05.9]} 25. Qxb5
{[%clk 0:00:24.6]} 25... Rg8 {[%clk 0:00:59.2]} 26. g3 {[%clk 0:00:24.8]} 26...
hxg3 {[%clk 0:00:56.8]} 27. fxg3 {[%clk 0:00:24.7]} 27... Qh3 {[%clk 0:00:49.8]}
28. Qf1 {[%clk 0:00:17.7]} 28... Rxg3+ {[%clk 0:00:40.2]} 29. hxg3 {[%clk
0:00:17.6]} 29... Qxg3+ {[%clk 0:00:41.1]} 30. Kh1 {[%clk 0:00:18.4]} 30... Bg7
{[%clk 0:00:41.4]} 31. Bh6 {[%clk 0:00:10.9]} 31... Rh8 {[%clk 0:00:39.3]} 32.
Re6 {[%clk 0:00:11.2]} 32... Bf6 {[%clk 0:00:31]} 33. Rxf6+ {[%clk 0:00:09.9]}
33... Kxf6 {[%clk 0:00:31.9]} 34. Ra6+ {[%clk 0:00:10.6]} 34... Nd6 {[%clk
0:00:29.1]} 35. Rxd6+ {[%clk 0:00:10.2]} 35... Qxd6 {[%clk 0:00:28.7]} 36. Qxf3+
{[%clk 0:00:10.8]} 36... Kg6 {[%clk 0:00:27.2]} 37. Kg2 {[%clk 0:00:09.1]} 37...
Rxh6 {[%clk 0:00:25.4]} 38. Nd3 {[%clk 0:00:09.5]} 38... Qh2+ {[%clk 0:00:20.4]}
39. Kf1 {[%clk 0:00:10]} 39... Qh1+ {[%clk 0:00:20.5]} 40. Qxh1 {[%clk
0:00:09.9]} 40... Rxh1+ {[%clk 0:00:21.4]} 41. Kg2 {[%clk 0:00:10.4]} 41... Rd1
{[%clk 0:00:20]} 42. Ne5+ {[%clk 0:00:09]} 42... Kf5 {[%clk 0:00:20]} 43. Kf2
{[%clk 0:00:09.7]} 43... Rc1 {[%clk 0:00:19.7]} 44. b5 {[%clk 0:00:09.8]} 44...
Rxc3 {[%clk 0:00:19.5]} 45. Ke2 {[%clk 0:00:10.5]} 45... Rb3 {[%clk 0:00:19.3]}
46. Nf7 {[%clk 0:00:10.3]} 46... Ke6 {[%clk 0:00:18.3]} 47. Ne5 {[%clk
0:00:09.9]} 47... Rxb5 {[%clk 0:00:17.8]} 48. Nd3 {[%clk 0:00:10.8]} 48... Ra5
{[%clk 0:00:16.1]} 49. Kd2 {[%clk 0:00:11.3]} 49... Kd6 {[%clk 0:00:16.1]} 50.
Kc2 {[%clk 0:00:11.2]} 50... Nf5 {[%clk 0:00:16.3]} 51. Kc3 {[%clk 0:00:09.9]}
51... Ra3+ {[%clk 0:00:16.5]} 0-1

[Event "Late-Titled-Tuesday-Blitz-October-24-2023"]
[Site "Chess.com"]
[Date "2023.10.24"]
[Round "1"]
[White "HalfIsCrayfish"]
[Black "MikeSailer"]
[Result "1-0"]
[WhiteElo "2546"]
[BlackElo "2043"]
[TimeControl "180+1"]
[EndTime "14:07:46 PDT"]
[Termination "HalfIsCrayfish won on time"]

1. e4 {[%clk 0:03:00.9]} 1... d5 {[%clk 0:02:58.8]} 2. Nc3 {[%clk 0:02:59.2]}
2... dxe4 {[%clk 0:02:58.4]} 3. Nxe4 {[%clk 0:03:00.1]} 3... Qd5 {[%clk
0:02:58.6]} 4. Qf3 {[%clk 0:02:56.2]} 4... Nc6 {[%clk 0:02:47.4]} 5. Ne2 {[%clk
0:02:45.3]} 5... Bf5 {[%clk 0:02:30.3]} 6. N2c3 {[%clk 0:02:43.4]} 6... Qe5
{[%clk 0:02:12.8]} 7. Bb5 {[%clk 0:02:14.7]} 7... Nf6 {[%clk 0:02:04.7]} 8.
Bxc6+ {[%clk 0:02:12.9]} 8... bxc6 {[%clk 0:02:04.2]} 9. d3 {[%clk 0:02:13.5]}
9... e6 {[%clk 0:01:44.5]} 10. Bf4 {[%clk 0:02:06.2]} 10... Bxe4 {[%clk
0:01:30.1]} 11. dxe4 {[%clk 0:02:02.1]} 11... Qa5 {[%clk 0:01:22]} 12. O-O
{[%clk 0:02:00]} 12... Be7 {[%clk 0:01:12.8]} 13. a3 {[%clk 0:01:55.9]} 13...
O-O {[%clk 0:01:09.9]} 14. b4 {[%clk 0:01:55.5]} 14... Qb6 {[%clk 0:01:01.7]}
15. Be3 {[%clk 0:01:49.2]} 15... Qa6 {[%clk 0:00:50.8]} 16. e5 {[%clk
0:01:46.1]} 16... Nd5 {[%clk 0:00:47.9]} 17. Ne4 {[%clk 0:01:43.2]} 17... Nxe3
{[%clk 0:00:37.7]} 18. Qxe3 {[%clk 0:01:41]} 18... Qc4 {[%clk 0:00:36.6]} 19. c3
{[%clk 0:01:35.5]} 19... Rfd8 {[%clk 0:00:34.5]} 20. Rad1 {[%clk 0:01:29.6]}
20... Rd5 {[%clk 0:00:34.8]} 21. Ng3 {[%clk 0:01:10.4]} 21... a5 {[%clk
0:00:26.4]} 22. Rxd5 {[%clk 0:01:09.3]} 22... cxd5 {[%clk 0:00:26]} 23. Ne2
{[%clk 0:01:06]} 23... axb4 {[%clk 0:00:21.3]} 24. axb4 {[%clk 0:01:06.9]} 24...
Ra3 {[%clk 0:00:16.8]} 25. h3 {[%clk 0:01:04]} 25... Bxb4 {[%clk 0:00:13.6]} 26.
Rb1 {[%clk 0:01:00.5]} 26... Bf8 {[%clk 0:00:10.3]} 27. Rb8 {[%clk 0:00:55.1]}
27... h6 {[%clk 0:00:10.9]} 28. Kh2 {[%clk 0:00:51.4]} 28... Ra2 {[%clk
0:00:10.5]} 29. Nf4 {[%clk 0:00:50.6]} 29... Qe4 {[%clk 0:00:07.4]} 30. Qg3
{[%clk 0:00:42]} 30... g6 {[%clk 0:00:06.9]} 31. Nh5 {[%clk 0:00:35.1]} 31...
Qf5 {[%clk 0:00:04.6]} 32. Nf6+ {[%clk 0:00:34.9]} 32... Kg7 {[%clk 0:00:05.2]}
33. f4 {[%clk 0:00:34.3]} 33... Ra3 {[%clk 0:00:02.6]} 34. Ne8+ {[%clk
0:00:33.6]} 34... Kg8 {[%clk 0:00:02.7]} 35. Nf6+ {[%clk 0:00:33.4]} 35... Kg7
{[%clk 0:00:03.4]} 36. Qe3 {[%clk 0:00:33.2]} 36... Ra1 {[%clk 0:00:02.7]} 37.
Ne8+ {[%clk 0:00:32.8]} 37... Kg8 {[%clk 0:00:02.8]} 38. Kg3 {[%clk 0:00:24.9]}
38... g5 {[%clk 0:00:03.3]} 39. Nf6+ {[%clk 0:00:22.9]} 39... Kg7 {[%clk
0:00:02.8]} 40. fxg5 {[%clk 0:00:15.5]} 40... Qxg5+ {[%clk 0:00:02.8]} 41. Qxg5+
{[%clk 0:00:15.3]} 41... hxg5 {[%clk 0:00:03.4]} 42. Nh5+ {[%clk 0:00:16]} 42...
Kg6 {[%clk 0:00:03.4]} 43. Kg4 {[%clk 0:00:11.1]} 1-0

[Event "Late-Titled-Tuesday-Blitz-October-24-2023"]
[Site "Chess.com"]
[Date "2023.10.24"]
[Round "1"]
[White "APOKALIPSA13"]
[Black "OPQRC"]
[Result "0-1"]
[WhiteElo "2209"]
[BlackElo "2587"]
[TimeControl "180+1"]
[EndTime "14:07:47 PDT"]
[Termination "OPQRC won by resignation"]

1. e4 {[%clk 0:02:59.5]} 1... c5 {[%clk 0:02:50.2]} 2. Nf3 {[%clk 0:02:58.3]}
2... d6 {[%clk 0:02:47.8]} 3. Bc4 {[%clk 0:02:55.9]} 3... e6 {[%clk 0:02:47]} 4.
Nc3 {[%clk 0:02:54.8]} 4... Nc6 {[%clk 0:02:46.7]} 5. d4 {[%clk 0:02:53.6]} 5...
cxd4 {[%clk 0:02:46.6]} 6. Nxd4 {[%clk 0:02:53.8]} 6... Nf6 {[%clk 0:02:44.4]}
7. Nxc6 {[%clk 0:02:51.3]} 7... bxc6 {[%clk 0:02:43.6]} 8. e5 {[%clk 0:02:51.5]}
8... dxe5 {[%clk 0:02:38.3]} 9. Qxd8+ {[%clk 0:02:49.2]} 9... Kxd8 {[%clk
0:02:38.6]} 10. Bg5 {[%clk 0:02:48.6]} 10... Kc7 {[%clk 0:02:37.3]} 11. Bxf6
{[%clk 0:02:39]} 11... gxf6 {[%clk 0:02:36.8]} 12. O-O-O {[%clk 0:02:37.9]}
12... Be7 {[%clk 0:02:28.7]} 13. Rhe1 {[%clk 0:02:35.4]} 13... Rb8 {[%clk
0:02:25.1]} 14. a3 {[%clk 0:02:31.8]} 14... Bb7 {[%clk 0:02:21.5]} 15. Rd3
{[%clk 0:02:26.2]} 15... Rbd8 {[%clk 0:02:21.2]} 16. Red1 {[%clk 0:02:22.2]}
16... f5 {[%clk 0:02:15.6]} 17. Rg3 {[%clk 0:02:16.1]} 17... Rdg8 {[%clk
0:02:07.7]} 18. Rdd3 {[%clk 0:02:13.1]} 18... e4 {[%clk 0:02:04.2]} 19. Rxg8
{[%clk 0:02:12.3]} 19... Rxg8 {[%clk 0:02:03.4]} 20. Rg3 {[%clk 0:02:11.2]}
20... Rxg3 {[%clk 0:02:02.9]} 21. hxg3 {[%clk 0:02:10.3]} 21... Bc5 {[%clk
0:01:51.7]} 22. Nd1 {[%clk 0:02:09.7]} 22... Kd6 {[%clk 0:01:50.3]} 23. Kd2
{[%clk 0:02:09.4]} 23... Ke5 {[%clk 0:01:49.4]} 24. b4 {[%clk 0:01:53.8]} 24...
Bb6 {[%clk 0:01:44.5]} 25. c3 {[%clk 0:01:53.2]} 25... f4 {[%clk 0:01:40.4]} 26.
gxf4+ {[%clk 0:01:47.9]} 26... Kxf4 {[%clk 0:01:41.3]} 27. Ke2 {[%clk
0:01:47.8]} 27... h5 {[%clk 0:01:28.2]} 28. a4 {[%clk 0:01:32.6]} 28... a5
{[%clk 0:01:25]} 29. Ne3 {[%clk 0:01:20.2]} 29... h4 {[%clk 0:01:19.2]} 30. Nf1
{[%clk 0:01:16.7]} 30... Ke5 {[%clk 0:01:12.8]} 31. Ne3 {[%clk 0:01:08.3]} 31...
f5 {[%clk 0:01:12.8]} 32. Nf1 {[%clk 0:00:46.2]} 32... f4 {[%clk 0:01:09.8]} 33.
Nh2 {[%clk 0:00:36.3]} 33... Kf5 {[%clk 0:01:03.1]} 34. f3 {[%clk 0:00:34.3]}
34... exf3+ {[%clk 0:00:54.7]} 35. gxf3 {[%clk 0:00:34]} 35... e5 {[%clk
0:00:50.5]} 36. Bd3+ {[%clk 0:00:29.8]} 36... Ke6 {[%clk 0:00:48.4]} 37. Kf1
{[%clk 0:00:29]} 37... h3 {[%clk 0:00:44]} 38. Ng4 {[%clk 0:00:24.9]} 38... Bc8
{[%clk 0:00:36.2]} 39. Bc4+ {[%clk 0:00:21.5]} 39... Kd6 {[%clk 0:00:30.5]} 40.
Nh2 {[%clk 0:00:20.5]} 40... axb4 {[%clk 0:00:26.6]} 41. cxb4 {[%clk 0:00:20.4]}
41... Be3 {[%clk 0:00:26.7]} 42. b5 {[%clk 0:00:20.1]} 42... cxb5 {[%clk
0:00:25.6]} 43. axb5 {[%clk 0:00:20]} 43... Kc5 {[%clk 0:00:24.5]} 44. Bd3
{[%clk 0:00:19.4]} 44... Bd7 {[%clk 0:00:24.5]} 45. Ke2 {[%clk 0:00:18.6]} 45...
Bxb5 {[%clk 0:00:23.6]} 46. Bxb5 {[%clk 0:00:18.2]} 46... Kxb5 {[%clk
0:00:23.9]} 47. Kd3 {[%clk 0:00:18.1]} 47... Kb4 {[%clk 0:00:21.4]} 48. Ke4
{[%clk 0:00:18.1]} 48... Bd4 {[%clk 0:00:21.4]} 49. Ng4 {[%clk 0:00:17.7]} 49...
Kc3 {[%clk 0:00:21.1]} 50. Nh2 {[%clk 0:00:16.5]} 50... Kd2 {[%clk 0:00:21.4]}
51. Ng4 {[%clk 0:00:16.5]} 51... Ke2 {[%clk 0:00:20.6]} 52. Nh2 {[%clk
0:00:15.1]} 52... Kf2 {[%clk 0:00:20.3]} 53. Ng4+ {[%clk 0:00:15.2]} 53... Kg3
{[%clk 0:00:19.9]} 0-1

[Event "Late-Titled-Tuesday-Blitz-October-24-2023"]
[Site "Chess.com"]
[Date "2023.10.24"]
[Round "1"]
[White "FabianoCaruana"]
[Black "koncheto"]
[Result "0-1"]
[WhiteElo "3083"]
[BlackElo "2540"]
[TimeControl "180+1"]
[EndTime "14:07:48 PDT"]
[Termination "koncheto won by checkmate"]

1. b3 {[%clk 0:03:00.9]} 1... d5 {[%clk 0:02:58.7]} 2. Bb2 {[%clk 0:03:01.8]}
2... Bg4 {[%clk 0:02:56.7]} 3. f3 {[%clk 0:03:01.7]} 3... Bh5 {[%clk 0:02:56.8]}
4. e3 {[%clk 0:03:01.9]} 4... c5 {[%clk 0:02:53.1]} 5. Ne2 {[%clk 0:02:58]} 5...
Bg6 {[%clk 0:02:49.2]} 6. h4 {[%clk 0:02:54.4]} 6... h6 {[%clk 0:02:41.6]} 7.
Nf4 {[%clk 0:02:54.2]} 7... Bh7 {[%clk 0:02:41]} 8. Bb5+ {[%clk 0:02:44.7]} 8...
Nc6 {[%clk 0:02:40.7]} 9. Bxc6+ {[%clk 0:02:34.9]} 9... bxc6 {[%clk 0:02:40.7]}
10. d3 {[%clk 0:02:35.2]} 10... Qc7 {[%clk 0:02:13.8]} 11. Qd2 {[%clk
0:02:32.8]} 11... e5 {[%clk 0:02:12.3]} 12. Ne2 {[%clk 0:02:33.5]} 12... Nf6
{[%clk 0:02:11.5]} 13. Nbc3 {[%clk 0:02:32.5]} 13... Be7 {[%clk 0:01:56.8]} 14.
O-O-O {[%clk 0:02:28.4]} 14... d4 {[%clk 0:01:50.4]} 15. Na4 {[%clk 0:02:23.1]}
15... Nd5 {[%clk 0:01:37.3]} 16. e4 {[%clk 0:02:20.1]} 16... Ne3 {[%clk
0:01:37.6]} 17. Rdg1 {[%clk 0:02:20.3]} 17... Rb8 {[%clk 0:01:23.2]} 18. c4
{[%clk 0:02:02.9]} 18... f5 {[%clk 0:01:11.8]} 19. exf5 {[%clk 0:01:57.7]} 19...
Nxf5 {[%clk 0:01:00.8]} 20. Kb1 {[%clk 0:01:38]} 20... Nxh4 {[%clk 0:00:44.1]}
21. Ng3 {[%clk 0:01:36.4]} 21... Bg5 {[%clk 0:00:38.9]} 22. Qe2 {[%clk 0:01:34]}
22... Ng6 {[%clk 0:00:27.2]} 23. Nh5 {[%clk 0:01:27.1]} 23... O-O {[%clk
0:00:19.2]} 24. Nxc5 {[%clk 0:01:26.5]} 24... Qe7 {[%clk 0:00:15.5]} 25. Ne4
{[%clk 0:01:24.1]} 25... Be3 {[%clk 0:00:14.6]} 26. Re1 {[%clk 0:01:08.6]} 26...
a5 {[%clk 0:00:14.6]} 27. Qc2 {[%clk 0:00:57.7]} 27... a4 {[%clk 0:00:12.3]} 28.
bxa4 {[%clk 0:00:58]} 28... Qa7 {[%clk 0:00:05.7]} 29. Ka1 {[%clk 0:00:57]}
29... Rb7 {[%clk 0:00:04.3]} 30. Ba3 {[%clk 0:00:54.9]} 30... Ra8 {[%clk
0:00:04.3]} 31. Nc5 {[%clk 0:00:54]} 31... Rf7 {[%clk 0:00:03]} 32. Rb1 {[%clk
0:00:51.3]} 32... Nf4 {[%clk 0:00:02.6]} 33. Nxf4 {[%clk 0:00:51.6]} 33... Bxf4
{[%clk 0:00:03.2]} 34. Rb3 {[%clk 0:00:47.3]} 34... Bg5 {[%clk 0:00:03.3]} 35.
Rhb1 {[%clk 0:00:46.4]} 35... Be7 {[%clk 0:00:03.7]} 36. Rb7 {[%clk 0:00:46.7]}
36... Qa5 {[%clk 0:00:03.3]} 37. Nb3 {[%clk 0:00:41.7]} 37... Qxa4 {[%clk
0:00:02.5]} 38. Bxe7 {[%clk 0:00:41.5]} 38... Bxd3 {[%clk 0:00:01.1]} 39. Qd2
{[%clk 0:00:18.7]} 39... Bxb1 {[%clk 0:00:01.5]} 40. Kxb1 {[%clk 0:00:19.6]}
40... Qxc4 {[%clk 0:00:01.8]} 41. Rc7 {[%clk 0:00:10.5]} 41... Qe6 {[%clk
0:00:02.4]} 42. Nc5 {[%clk 0:00:08]} 42... Qg6+ {[%clk 0:00:02.6]} 43. Ne4
{[%clk 0:00:08.5]} 43... Re8 {[%clk 0:00:03.3]} 44. Bd6 {[%clk 0:00:08.4]} 44...
Rxc7 {[%clk 0:00:02.7]} 45. Bxc7 {[%clk 0:00:09.3]} 45... Qe6 {[%clk 0:00:02.7]}
46. Bd6 {[%clk 0:00:09.3]} 46... Qd5 {[%clk 0:00:02.7]} 47. Bc5 {[%clk
0:00:09.2]} 47... Rb8+ {[%clk 0:00:02.7]} 48. Ka1 {[%clk 0:00:09.8]} 48... Qc4
{[%clk 0:00:03.2]} 49. a3 {[%clk 0:00:09.7]} 49... Qf1+ {[%clk 0:00:03.2]} 50.
Ka2 {[%clk 0:00:10.1]} 50... Qb1# {[%clk 0:00:03.5]} 0-1

[Event "Late-Titled-Tuesday-Blitz-October-24-2023"]
[Site "Chess.com"]
[Date "2023.10.24"]
[Round "1"]
[White "mbojan"]
[Black "GiorgianBarbosa"]
[Result "1-0"]
[WhiteElo "2770"]
[BlackElo "2434"]
[TimeControl "180+1"]
[EndTime "14:07:48 PDT"]
[Termination "mbojan won by resignation"]

1. Nf3 {[%clk 0:03:00.9]} 1... Nf6 {[%clk 0:02:49]} 2. g3 {[%clk 0:03:00.8]}
2... e6 {[%clk 0:02:48.1]} 3. Bg2 {[%clk 0:02:58.4]} 3... d5 {[%clk 0:02:49]} 4.
O-O {[%clk 0:02:59.1]} 4... Be7 {[%clk 0:02:48.6]} 5. d3 {[%clk 0:02:59.7]} 5...
O-O {[%clk 0:02:49.4]} 6. Nbd2 {[%clk 0:03:00]} 6... b6 {[%clk 0:02:48.7]} 7. e4
{[%clk 0:02:59.9]} 7... Bb7 {[%clk 0:02:45.7]} 8. e5 {[%clk 0:02:59.1]} 8...
Nfd7 {[%clk 0:02:44.5]} 9. Re1 {[%clk 0:02:55.7]} 9... c5 {[%clk 0:02:30.4]} 10.
Nf1 {[%clk 0:02:51.2]} 10... Nc6 {[%clk 0:02:24.6]} 11. h4 {[%clk 0:02:48.5]}
11... Re8 {[%clk 0:02:05.2]} 12. Bf4 {[%clk 0:02:33.1]} 12... f6 {[%clk
0:02:01.1]} 13. Bh3 {[%clk 0:02:11.7]} 13... f5 {[%clk 0:01:34.3]} 14. c4 {[%clk
0:01:51.9]} 14... Nf8 {[%clk 0:01:22.4]} 15. h5 {[%clk 0:01:45.4]} 15... dxc4
{[%clk 0:01:08.1]} 16. dxc4 {[%clk 0:01:38.3]} 16... Nb4 {[%clk 0:01:08.5]} 17.
Bg2 {[%clk 0:01:31]} 17... Nd3 {[%clk 0:01:00.1]} 18. Re2 {[%clk 0:01:23.9]}
18... Nxf4 {[%clk 0:00:59.9]} 19. Rd2 {[%clk 0:01:10.8]} 19... Qc7 {[%clk
0:00:30.5]} 20. gxf4 {[%clk 0:01:06.2]} 20... Rad8 {[%clk 0:00:31]} 21. Qe2
{[%clk 0:00:34.4]} 21... Rxd2 {[%clk 0:00:29.8]} 22. N3xd2 {[%clk 0:00:31.2]}
22... Bxg2 {[%clk 0:00:27.2]} 23. Kxg2 {[%clk 0:00:32.1]} 23... Rd8 {[%clk
0:00:26.2]} 24. Nf3 {[%clk 0:00:32.4]} 24... Qc6 {[%clk 0:00:21.9]} 25. Ng3
{[%clk 0:00:24.7]} 25... Rd4 {[%clk 0:00:19]} 26. Qe3 {[%clk 0:00:16.9]} 26...
Rxc4 {[%clk 0:00:17.3]} 27. Rd1 {[%clk 0:00:17.3]} 27... Rc2 {[%clk 0:00:14.8]}
28. Nxf5 {[%clk 0:00:09.4]} 28... exf5 {[%clk 0:00:13.1]} 29. Qb3+ {[%clk
0:00:09.4]} 29... Ne6 {[%clk 0:00:11.6]} 30. Rd6 {[%clk 0:00:04.3]} 30... c4
{[%clk 0:00:08.6]} 31. Qxc2 {[%clk 0:00:01.7]} 31... Nxf4+ {[%clk 0:00:09.1]}
32. Kg3 {[%clk 0:00:02.4]} 32... Bxd6 {[%clk 0:00:09.4]} 33. Kxf4 {[%clk
0:00:02.7]} 33... Be7 {[%clk 0:00:06.9]} 34. Qxf5 {[%clk 0:00:03.1]} 34... Qe8
{[%clk 0:00:04.1]} 35. Qe6+ {[%clk 0:00:03]} 35... Qf7+ {[%clk 0:00:03.2]} 36.
Qxf7+ {[%clk 0:00:03.6]} 36... Kxf7 {[%clk 0:00:04.1]} 37. Ke4 {[%clk
0:00:04.4]} 37... Ke6 {[%clk 0:00:04.5]} 38. Nd4+ {[%clk 0:00:04.7]} 38... Kd7
{[%clk 0:00:04]} 39. Kd5 {[%clk 0:00:05.5]} 39... Bc5 {[%clk 0:00:03.5]} 40.
Kxc4 {[%clk 0:00:05.6]} 40... Bxd4 {[%clk 0:00:03.7]} 41. Kxd4 {[%clk
0:00:06.5]} 41... Ke6 {[%clk 0:00:04.3]} 42. Ke4 {[%clk 0:00:07.1]} 42... g6
{[%clk 0:00:04.3]} 43. hxg6 {[%clk 0:00:07.5]} 43... hxg6 {[%clk 0:00:04.9]} 44.
f4 {[%clk 0:00:08.3]} 44... b5 {[%clk 0:00:05.5]} 45. b4 {[%clk 0:00:07.5]}
45... a5 {[%clk 0:00:06.4]} 46. bxa5 {[%clk 0:00:06.9]} 46... Kd7 {[%clk
0:00:06.8]} 47. Kd5 {[%clk 0:00:06.7]} 47... Kc7 {[%clk 0:00:07]} 48. e6 {[%clk
0:00:07]} 1-0

[Event "Late-Titled-Tuesday-Blitz-October-24-2023"]
[Site "Chess.com"]
[Date "2023.10.24"]
[Round "1"]
[White "topin8"]
[Black "DopplerCharlotteDeWitte"]
[Result "0-1"]
[WhiteElo "2450"]
[BlackElo "2786"]
[TimeControl "180+1"]
[EndTime "14:07:50 PDT"]
[Termination "DopplerCharlotteDeWitte won on time"]

1. e4 {[%clk 0:02:57]} 1... c5 {[%clk 0:02:59.5]} 2. Nf3 {[%clk 0:02:52.9]} 2...
e6 {[%clk 0:02:59.6]} 3. c3 {[%clk 0:02:53.1]} 3... d5 {[%clk 0:02:56.9]} 4. e5
{[%clk 0:02:49.5]} 4... d4 {[%clk 0:02:56.7]} 5. d3 {[%clk 0:02:44.8]} 5... Bd7
{[%clk 0:02:51.2]} 6. g3 {[%clk 0:02:44.4]} 6... Bc6 {[%clk 0:02:51.2]} 7. Bg2
{[%clk 0:02:45]} 7... Nd7 {[%clk 0:02:49.8]} 8. O-O {[%clk 0:02:43]} 8... Ne7
{[%clk 0:02:48.3]} 9. cxd4 {[%clk 0:02:22.4]} 9... cxd4 {[%clk 0:02:48.3]} 10.
Nbd2 {[%clk 0:02:15.5]} 10... Nf5 {[%clk 0:02:39.4]} 11. Re1 {[%clk 0:02:10.4]}
11... Be7 {[%clk 0:02:38.3]} 12. a3 {[%clk 0:01:58.5]} 12... h5 {[%clk 0:02:30]}
13. h4 {[%clk 0:01:31.3]} 13... Nc5 {[%clk 0:02:17.7]} 14. Ne4 {[%clk
0:00:53.6]} 14... Nxe4 {[%clk 0:01:48]} 15. dxe4 {[%clk 0:00:52.7]} 15... Nh6
{[%clk 0:01:48.6]} 16. Nxd4 {[%clk 0:00:45.1]} 16... Ng4 {[%clk 0:01:41.5]} 17.
b4 {[%clk 0:00:11.7]} 17... Nxe5 {[%clk 0:01:32.3]} 18. Bb2 {[%clk 0:00:11.9]}
18... Nc4 {[%clk 0:01:25.6]} 19. Bc3 {[%clk 0:00:11.8]} 19... Rc8 {[%clk
0:01:03.7]} 20. Qe2 {[%clk 0:00:10.5]} 20... Bd7 {[%clk 0:01:01.8]} 21. Nf3
{[%clk 0:00:03.3]} 21... O-O {[%clk 0:00:56.8]} 22. Red1 {[%clk 0:00:02.9]}
22... Qc7 {[%clk 0:00:38.5]} 23. Rac1 {[%clk 0:00:03.2]} 23... Bb5 {[%clk
0:00:30.8]} 24. Qa2 {[%clk 0:00:03.1]} 24... Rfd8 {[%clk 0:00:17.5]} 25. Re1
{[%clk 0:00:03.4]} 25... Nb6 {[%clk 0:00:16.4]} 26. Bb2 {[%clk 0:00:02.1]} 26...
Bc4 {[%clk 0:00:16.5]} 27. Qa1 {[%clk 0:00:02.2]} 27... Bf8 {[%clk 0:00:15.9]}
28. Be5 {[%clk 0:00:02.4]} 28... Qe7 {[%clk 0:00:15.7]} 29. Bd4 {[%clk
0:00:02.5]} 29... f6 {[%clk 0:00:12.3]} 30. Bc5 {[%clk 0:00:02.6]} 30... Qe8
{[%clk 0:00:10.3]} 31. Nd4 {[%clk 0:00:02.2]} 31... Bxc5 {[%clk 0:00:07.6]} 32.
bxc5 {[%clk 0:00:03.1]} 32... Rxc5 {[%clk 0:00:08.3]} 33. Bf1 {[%clk 0:00:03.7]}
33... Rdc8 {[%clk 0:00:06]} 34. Bxc4 {[%clk 0:00:03.9]} 34... Rxc4 {[%clk
0:00:06.9]} 35. Rxc4 {[%clk 0:00:04.3]} 35... Rxc4 {[%clk 0:00:07.7]} 36. Ne2
{[%clk 0:00:03.3]} 36... e5 {[%clk 0:00:07.7]} 37. Nc1 {[%clk 0:00:02.8]} 37...
Qc6 {[%clk 0:00:07.8]} 38. f3 {[%clk 0:00:02.6]} 38... Rc2 {[%clk 0:00:07.4]}
39. Nd3 {[%clk 0:00:02.5]} 39... Qc4 {[%clk 0:00:06.9]} 40. Nb4 {[%clk
0:00:02.8]} 40... Qc5+ {[%clk 0:00:06.9]} 41. Kh1 {[%clk 0:00:03.3]} 41... Rc3
{[%clk 0:00:06.4]} 42. Qd1 {[%clk 0:00:03.4]} 42... Qf2 {[%clk 0:00:04.9]} 43.
Qd8+ {[%clk 0:00:03.2]} 43... Kh7 {[%clk 0:00:05.5]} 44. Rd1 {[%clk 0:00:03.5]}
44... Qxf3+ {[%clk 0:00:05.6]} 45. Kg1 {[%clk 0:00:03.7]} 45... Qxg3+ {[%clk
0:00:06.1]} 46. Kh1 {[%clk 0:00:04.3]} 46... Qh3+ {[%clk 0:00:06]} 47. Kg1
{[%clk 0:00:04.8]} 47... Rg3+ {[%clk 0:00:06.7]} 0-1